[Event "January 9 Late 2024"]
[Site "https://www.chess.com"]
[Date "2024.01.10"]
[Round "11"]
[White "Korchmar, Vasiliy"]
[Black "Otero Marino, Alain"]
[Result "0-1"]
[Board "33"]
[TimeControl "180+1"]
[WhiteFideId "24131750"]
[BlackFideId "3524876"]
[WhiteElo "2762"]
[BlackElo "2599"]
[WhiteTeam "RUS"]
[BlackTeam "CUB"]
[WhiteClock "0:00:00"]
[BlackClock "0:00:32"]

1. e4 {[%clk 0:03:00]}  e6 {[%clk 0:02:59]} 2. d4 {[%clk 0:03:00]}  d5 {[%clk 0:02:59]} 3. e5 {[%clk 0:03:01]}  c5 {[%clk 0:02:59]} 4. c3 {[%clk 0:03:01]}  Nc6 {[%clk 0:03:00]} 5. Nf3 {[%clk 0:03:02]}  Bd7 {[%clk 0:03:00]} 6. Be2 {[%clk 0:03:01]}  Nge7 {[%clk 0:02:59]} 7. Na3 {[%clk 0:03:00]}  cxd4 {[%clk 0:02:59]} 8. cxd4 {[%clk 0:03:00]}  Nf5 {[%clk 0:02:59]} 9. Nc2 {[%clk 0:03:00]}  Nb4 {[%clk 0:03:00]} 10. Ne3 {[%clk 0:02:54]}  Nxe3 {[%clk 0:02:59]} 11. Bxe3 {[%clk 0:02:52]}  Rc8 {[%clk 0:02:58]} 12. O-O {[%clk 0:02:38]}  Nc2 {[%clk 0:02:57]} 13. Bg5 {[%clk 0:02:30]}  Be7 {[%clk 0:02:51]} 14. Bxe7 {[%clk 0:02:29]}  Kxe7 {[%clk 0:02:42]} 15. Rc1 {[%clk 0:02:27]}  Nb4 {[%clk 0:02:42]} 16. Rxc8 {[%clk 0:02:22]}  Bxc8 {[%clk 0:02:40]} 17. Qd2 {[%clk 0:02:19]}  Nc6 {[%clk 0:02:40]} 18. Qg5+ {[%clk 0:02:17]}  Kf8 {[%clk 0:02:41]} 19. Qf4 {[%clk 0:02:14]}  h6 {[%clk 0:02:37]} 20. Rc1 {[%clk 0:02:10]}  g5 {[%clk 0:02:37]} 21. Qe3 {[%clk 0:02:08]}  Bd7 {[%clk 0:02:36]} 22. Bb5 {[%clk 0:01:52]}  Ne7 {[%clk 0:02:18]} 23. Bd3 {[%clk 0:01:49]}  Nc6 {[%clk 0:02:14]} 24. h4 {[%clk 0:01:46]}  g4 {[%clk 0:02:12]} 25. Nd2 {[%clk 0:01:45]}  Qxh4 {[%clk 0:02:12]} 26. Bb5 {[%clk 0:01:36]}  Kg7 {[%clk 0:02:04]} 27. Bxc6 {[%clk 0:01:26]}  Bxc6 {[%clk 0:02:03]} 28. Nf1 {[%clk 0:01:26]}  Qg5 {[%clk 0:02:03]} 29. Qxg5+ {[%clk 0:01:21]}  hxg5 {[%clk 0:02:02]} 30. Ne3 {[%clk 0:01:22]}  Rc8 {[%clk 0:01:45]} 31. Nxg4 {[%clk 0:01:18]}  Bd7 {[%clk 0:01:40]} 32. Rxc8 {[%clk 0:01:17]}  Bxc8 {[%clk 0:01:40]} 33. Nf6 {[%clk 0:01:16]}  Kg6 {[%clk 0:01:37]} 34. g4 {[%clk 0:01:07]}  b6 {[%clk 0:01:37]} 35. f3 {[%clk 0:01:02]}  Bb7 {[%clk 0:01:33]} 36. Kf2 {[%clk 0:01:00]}  Bc6 {[%clk 0:01:33]} 37. Ke3 {[%clk 0:01:00]}  a5 {[%clk 0:01:33]} 38. Ng8 {[%clk 0:00:53]}  Bd7 {[%clk 0:01:30]} 39. Nf6 {[%clk 0:00:50]}  Bc6 {[%clk 0:01:30]} 40. Nh5 {[%clk 0:00:39]}  Bd7 {[%clk 0:01:28]} 41. f4 {[%clk 0:00:33]}  Ba4 {[%clk 0:01:21]} 42. Kf3 {[%clk 0:00:24]}  Bd1+ {[%clk 0:01:18]} 43. Kg3 {[%clk 0:00:24]}  Ba4 {[%clk 0:01:16]} 44. Nf6 {[%clk 0:00:21]}  Bc6 {[%clk 0:01:12]} 45. Ng8 {[%clk 0:00:20]}  Bd7 {[%clk 0:01:00]} 46. Ne7+ {[%clk 0:00:20]}  Kg7 {[%clk 0:01:00]} 47. f5 {[%clk 0:00:18]}  Kf8 {[%clk 0:00:59]} 48. f6 {[%clk 0:00:17]}  Ke8 {[%clk 0:00:55]} 49. Kf3 {[%clk 0:00:09]}  Kd8 {[%clk 0:00:55]} 50. Ke3 {[%clk 0:00:08]}  Kc7 {[%clk 0:00:54]} 51. Ng8 {[%clk 0:00:07]}  b5 {[%clk 0:00:52]} 52. Nh6 {[%clk 0:00:07]}  Be8 {[%clk 0:00:53]} 53. Kd3 {[%clk 0:00:06]}  Kb6 {[%clk 0:00:52]} 54. Ng8 {[%clk 0:00:05]}  Kc7 {[%clk 0:00:52]} 55. Kc3 {[%clk 0:00:05]}  Kb6 {[%clk 0:00:47]} 56. Nh6 {[%clk 0:00:05]}  b4+ {[%clk 0:00:46]} 57. Kb3 {[%clk 0:00:05]}  Kb5 {[%clk 0:00:47]} 58. a4+ {[%clk 0:00:03]}  Kb6 {[%clk 0:00:46]} 59. Ng8 {[%clk 0:00:02]}  Kc7 {[%clk 0:00:46]} 60. Nh6 {[%clk 0:00:02]}  Kd8 {[%clk 0:00:46]} 61. Ka2 {[%clk 0:00:02]}  Kc7 {[%clk 0:00:43]} 62. b3 {[%clk 0:00:02]}  Kd8 {[%clk 0:00:43]} 63. Kb2 {[%clk 0:00:03]}  Kd7 {[%clk 0:00:44]} 64. Kc2 {[%clk 0:00:03]}  Kd8 {[%clk 0:00:44]} 65. Kd2 {[%clk 0:00:04]}  Kd7 {[%clk 0:00:44]} 66. Ke3 {[%clk 0:00:04]}  Kd8 {[%clk 0:00:45]} 67. Kf3 {[%clk 0:00:05]}  Kd7 {[%clk 0:00:45]} 68. Nf5 {[%clk 0:00:04]}  exf5 {[%clk 0:00:42]} 69. gxf5 {[%clk 0:00:04]}  Kd8 {[%clk 0:00:42]} 70. e6 {[%clk 0:00:04]}  Kc7 {[%clk 0:00:40]} 71. Kg4 {[%clk 0:00:03]}  Kd6 {[%clk 0:00:40]} 72. e7 {[%clk 0:00:03]}  Kc7 {[%clk 0:00:36]} 73. Kxg5 {[%clk 0:00:03]}  Bxa4 {[%clk 0:00:32]} 74. bxa4 {[%clk 0:00:03]}  Kd7 {[%clk 0:00:32]} 75. Kf4 {[%clk 0:00:00]}  b3 {[%clk 0:00:32]} 0-1

[Event "January 9 Late 2024"]
[Site "https://www.chess.com"]
[Date "2024.01.09"]
[Round "11"]
[White "Dilmukhametov, Artur"]
[Black "Chirilov, James A"]
[Result "1-0"]
[Board "34"]
[TimeControl "180+1"]
[WhiteFideId "24179922"]
[BlackFideId "30976677"]
[WhiteElo "2364"]
[BlackElo "2756"]
[WhiteTeam "RUS"]
[BlackTeam "USA"]
[WhiteClock "0:00:35"]
[BlackClock "0:00:10"]

1. e4 {[%clk 0:02:59]}  c5 {[%clk 0:02:59]} 2. Nf3 {[%clk 0:02:58]}  d6 {[%clk 0:02:56]} 3. Bb5+ {[%clk 0:02:58]}  Nd7 {[%clk 0:02:55]} 4. O-O {[%clk 0:02:58]}  Nf6 {[%clk 0:02:55]} 5. e5 {[%clk 0:02:58]}  dxe5 {[%clk 0:02:52]} 6. Nxe5 {[%clk 0:02:58]}  Qc7 {[%clk 0:02:50]} 7. d4 {[%clk 0:02:56]}  e6 {[%clk 0:02:44]} 8. Nc3 {[%clk 0:02:48]}  a6 {[%clk 0:02:24]} 9. Bxd7+ {[%clk 0:02:45]}  Bxd7 {[%clk 0:02:17]} 10. Nxd7 {[%clk 0:02:42]}  Nxd7 {[%clk 0:02:15]} 11. d5 {[%clk 0:02:42]}  e5 {[%clk 0:02:04]} 12. Re1 {[%clk 0:02:28]}  Bd6 {[%clk 0:02:02]} 13. Ne4 {[%clk 0:02:24]}  O-O-O {[%clk 0:01:59]} 14. c4 {[%clk 0:02:20]}  h6 {[%clk 0:01:56]} 15. b4 {[%clk 0:02:18]}  cxb4 {[%clk 0:01:49]} 16. Be3 {[%clk 0:02:18]}  Nc5 {[%clk 0:01:33]} 17. Nxd6+ {[%clk 0:01:53]}  Qxd6 {[%clk 0:01:14]} 18. Bxc5 {[%clk 0:01:49]}  Qxc5 {[%clk 0:01:15]} 19. Qg4+ {[%clk 0:01:45]}  Kb8 {[%clk 0:01:10]} 20. Rxe5 {[%clk 0:01:44]}  Rc8 {[%clk 0:00:58]} 21. Rc1 {[%clk 0:01:20]}  Rhe8 {[%clk 0:00:50]} 22. Qxg7 {[%clk 0:01:17]}  f5 {[%clk 0:00:29]} 23. h3 {[%clk 0:01:03]}  f4 {[%clk 0:00:27]} 24. Rce1 {[%clk 0:00:51]}  Rg8 {[%clk 0:00:25]} 25. Qxh6 {[%clk 0:00:47]}  f3 {[%clk 0:00:23]} 26. g4 {[%clk 0:00:47]}  Qxc4 {[%clk 0:00:22]} 27. R5e4 {[%clk 0:00:38]}  Qxd5 {[%clk 0:00:16]} 28. Qf4+ {[%clk 0:00:38]}  Ka8 {[%clk 0:00:17]} 29. Qxf3 {[%clk 0:00:36]}  Qxa2 {[%clk 0:00:11]} 30. Rxb4 {[%clk 0:00:35]}  Qd2 {[%clk 0:00:10]} 31. Qxb7# {[%clk 0:00:35]} 1-0

[Event "January 9 Late 2024"]
[Site "https://www.chess.com"]
[Date "2024.01.09"]
[Round "11"]
[White "Novikov, Evgenij"]
[Black "Chan, Yi Ren Daniel"]
[Result "0-1"]
[Board "35"]
[TimeControl "180+1"]
[WhiteFideId "4125380"]
[BlackFideId "5801583"]
[WhiteElo "2519"]
[BlackElo "2839"]
[WhiteTeam "RUS"]
[BlackTeam "SGP"]
[WhiteClock "0:00:04"]
[BlackClock "0:00:40"]

1. d4 {[%clk 0:03:00]}  d5 {[%clk 0:03:00]} 2. Bf4 {[%clk 0:03:00]}  c5 {[%clk 0:02:59]} 3. e3 {[%clk 0:03:00]}  Nc6 {[%clk 0:02:59]} 4. c3 {[%clk 0:03:00]}  Qb6 {[%clk 0:02:55]} 5. Qb3 {[%clk 0:02:49]}  c4 {[%clk 0:02:54]} 6. Qc2 {[%clk 0:02:47]}  Nf6 {[%clk 0:02:46]} 7. Nd2 {[%clk 0:02:45]}  g6 {[%clk 0:02:46]} 8. b3 {[%clk 0:02:40]}  Bf5 {[%clk 0:02:44]} 9. Qb2 {[%clk 0:02:40]}  Nh5 {[%clk 0:02:34]} 10. Ne2 {[%clk 0:02:32]}  Bg7 {[%clk 0:02:30]} 11. h3 {[%clk 0:02:18]}  Bd3 {[%clk 0:02:22]} 12. g4 {[%clk 0:02:15]}  Bxe2 {[%clk 0:02:22]} 13. gxh5 {[%clk 0:02:05]}  Bxh5 {[%clk 0:02:18]} 14. Bg2 {[%clk 0:02:01]}  e6 {[%clk 0:02:17]} 15. Qa3 {[%clk 0:01:47]}  Bf8 {[%clk 0:02:13]} 16. Qa4 {[%clk 0:01:38]}  cxb3 {[%clk 0:02:06]} 17. axb3 {[%clk 0:01:39]}  a6 {[%clk 0:01:47]} 18. e4 {[%clk 0:01:32]}  Bg7 {[%clk 0:01:21]} 19. exd5 {[%clk 0:01:28]}  exd5 {[%clk 0:01:22]} 20. Bxd5 {[%clk 0:01:27]}  O-O {[%clk 0:01:23]} 21. O-O {[%clk 0:01:23]}  Rfe8 {[%clk 0:01:11]} 22. Qc4 {[%clk 0:01:19]}  Re7 {[%clk 0:01:03]} 23. Ne4 {[%clk 0:01:14]}  Rd8 {[%clk 0:00:52]} 24. Ng5 {[%clk 0:01:05]}  Be2 {[%clk 0:00:50]} 25. Bxf7+ {[%clk 0:01:01]}  Kh8 {[%clk 0:00:50]} 26. Qa4 {[%clk 0:00:33]}  Bxf1 {[%clk 0:00:49]} 27. Rxf1 {[%clk 0:00:30]}  Rf8 {[%clk 0:00:49]} 28. Qc4 {[%clk 0:00:24]}  Na5 {[%clk 0:00:44]} 29. Qd5 {[%clk 0:00:22]}  h6 {[%clk 0:00:43]} 30. Ne6 {[%clk 0:00:07]}  Rexf7 {[%clk 0:00:40]} 31. Nxg7 {[%clk 0:00:06]}  Kxg7 {[%clk 0:00:39]} 32. Be5+ {[%clk 0:00:06]}  Kh7 {[%clk 0:00:40]} 33. b4 {[%clk 0:00:06]}  Nc6 {[%clk 0:00:40]} 34. f4 {[%clk 0:00:06]}  Nxe5 {[%clk 0:00:39]} 35. Qxe5 {[%clk 0:00:06]}  Qc6 {[%clk 0:00:39]} 36. d5 {[%clk 0:00:04]}  Qf6 {[%clk 0:00:40]} 37. Qe3 {[%clk 0:00:02]}  Re7 {[%clk 0:00:40]} 38. Qd3 {[%clk 0:00:03]}  Rfe8 {[%clk 0:00:39]} 39. Rf3 {[%clk 0:00:03]}  Re1+ {[%clk 0:00:39]} 40. Kg2 {[%clk 0:00:03]}  R8e2+ {[%clk 0:00:39]} 41. Kg3 {[%clk 0:00:04]}  Rg1# {[%clk 0:00:40]} 0-1

[Event "January 9 Late 2024"]
[Site "https://www.chess.com"]
[Date "2024.01.09"]
[Round "11"]
[White "Baltag, Iulian"]
[Black "Ivanisevic, Ivan"]
[Result "0-1"]
[Board "37"]
[TimeControl "180+1"]
[WhiteFideId "13901419"]
[BlackFideId "912417"]
[WhiteElo "2611"]
[BlackElo "2770"]
[WhiteTeam "MDA"]
[BlackTeam "SRB"]
[WhiteClock "0:00:16"]
[BlackClock "0:00:36"]

1. e4 {[%clk 0:03:00]}  e5 {[%clk 0:02:19]} 2. Nf3 {[%clk 0:03:00]}  Nc6 {[%clk 0:02:19]} 3. Bb5 {[%clk 0:03:00]}  f5 {[%clk 0:02:17]} 4. d3 {[%clk 0:02:58]}  Nf6 {[%clk 0:02:16]} 5. O-O {[%clk 0:02:57]}  fxe4 {[%clk 0:02:16]} 6. dxe4 {[%clk 0:02:57]}  Bc5 {[%clk 0:02:16]} 7. Qd3 {[%clk 0:02:54]}  Nd4 {[%clk 0:02:13]} 8. Nxd4 {[%clk 0:02:52]}  Bxd4 {[%clk 0:02:12]} 9. c3 {[%clk 0:02:52]}  Bb6 {[%clk 0:02:11]} 10. Bg5 {[%clk 0:02:48]}  O-O {[%clk 0:02:06]} 11. Nd2 {[%clk 0:02:48]}  d6 {[%clk 0:01:52]} 12. Nc4 {[%clk 0:02:40]}  h6 {[%clk 0:01:51]} 13. Bh4 {[%clk 0:02:39]}  Be6 {[%clk 0:01:48]} 14. Nxb6 {[%clk 0:02:38]}  axb6 {[%clk 0:01:49]} 15. Bc4 {[%clk 0:02:36]}  Qe8 {[%clk 0:01:48]} 16. a3 {[%clk 0:02:32]}  Kh8 {[%clk 0:01:47]} 17. f3 {[%clk 0:02:26]}  Nh5 {[%clk 0:01:44]} 18. Bxe6 {[%clk 0:02:19]}  Qxe6 {[%clk 0:01:45]} 19. Rad1 {[%clk 0:02:14]}  Qg6 {[%clk 0:01:33]} 20. Qc4 {[%clk 0:02:08]}  Rf7 {[%clk 0:01:31]} 21. Kh1 {[%clk 0:02:00]}  Raf8 {[%clk 0:01:31]} 22. a4 {[%clk 0:01:57]}  Qh7 {[%clk 0:01:24]} 23. Bg3 {[%clk 0:01:42]}  g5 {[%clk 0:01:21]} 24. b4 {[%clk 0:01:29]}  Qg6 {[%clk 0:01:21]} 25. a5 {[%clk 0:01:25]}  bxa5 {[%clk 0:01:22]} 26. bxa5 {[%clk 0:01:25]}  Nf6 {[%clk 0:01:08]} 27. Qb5 {[%clk 0:01:20]}  g4 {[%clk 0:00:56]} 28. Qxb7 {[%clk 0:01:12]}  Nxe4 {[%clk 0:00:56]} 29. a6 {[%clk 0:00:57]}  gxf3 {[%clk 0:00:48]} 30. Rxf3 {[%clk 0:00:54]}  Rxf3 {[%clk 0:00:46]} 31. gxf3 {[%clk 0:00:55]}  Nxg3+ {[%clk 0:00:44]} 32. hxg3 {[%clk 0:00:54]}  Qxg3 {[%clk 0:00:44]} 33. a7 {[%clk 0:00:32]}  Rg8 {[%clk 0:00:39]} 34. a8=Q {[%clk 0:00:16]}  Qg2# {[%clk 0:00:36]} 0-1

[Event "January 9 Late 2024"]
[Site "https://www.chess.com"]
[Date "2024.01.09"]
[Round "11"]
[White "Sowa, Ryan"]
[Black "Zubritskiy, Artyom"]
[Result "1/2-1/2"]
[Board "38"]
[TimeControl "180+1"]
[WhiteFideId "30901693"]
[BlackFideId "4181247"]
[WhiteElo "2608"]
[BlackElo "2765"]
[WhiteTeam "USA"]
[BlackTeam "FID"]
[WhiteClock "0:00:37"]
[BlackClock "0:00:01"]

1. Nf3 {[%clk 0:03:00]}  f5 {[%clk 0:02:59]} 2. b3 {[%clk 0:02:58]}  d6 {[%clk 0:02:59]} 3. d4 {[%clk 0:02:58]}  Nf6 {[%clk 0:02:58]} 4. Bb2 {[%clk 0:02:58]}  g6 {[%clk 0:02:58]} 5. g3 {[%clk 0:02:59]}  Bg7 {[%clk 0:02:56]} 6. Bg2 {[%clk 0:02:59]}  O-O {[%clk 0:02:56]} 7. O-O {[%clk 0:03:00]}  Qe8 {[%clk 0:02:54]} 8. d5 {[%clk 0:02:59]}  a5 {[%clk 0:02:29]} 9. c4 {[%clk 0:02:58]}  Na6 {[%clk 0:02:28]} 10. Nc3 {[%clk 0:02:57]}  Nc5 {[%clk 0:02:28]} 11. Nb5 {[%clk 0:02:54]}  Na6 {[%clk 0:02:19]} 12. Nfd4 {[%clk 0:02:53]}  Bd7 {[%clk 0:02:18]} 13. Ne6 {[%clk 0:02:44]}  Bxe6 {[%clk 0:02:18]} 14. dxe6 {[%clk 0:02:45]}  c6 {[%clk 0:02:19]} 15. Nc3 {[%clk 0:02:45]}  Nc5 {[%clk 0:02:17]} 16. Qc2 {[%clk 0:02:31]}  Nxe6 {[%clk 0:02:08]} 17. e3 {[%clk 0:02:32]}  Nd7 {[%clk 0:02:03]} 18. Na4 {[%clk 0:02:31]}  Qf7 {[%clk 0:01:59]} 19. Rac1 {[%clk 0:02:31]}  Bxb2 {[%clk 0:01:58]} 20. Qxb2 {[%clk 0:02:32]}  Nec5 {[%clk 0:01:57]} 21. Qc2 {[%clk 0:02:31]}  Nxa4 {[%clk 0:01:57]} 22. bxa4 {[%clk 0:02:30]}  Nc5 {[%clk 0:01:57]} 23. Rb1 {[%clk 0:02:29]}  Qf6 {[%clk 0:01:53]} 24. Rfd1 {[%clk 0:02:29]}  Rad8 {[%clk 0:01:52]} 25. Qd2 {[%clk 0:02:27]}  Ra8 {[%clk 0:01:28]} 26. Qc2 {[%clk 0:02:25]}  e5 {[%clk 0:01:12]} 27. Rd2 {[%clk 0:02:26]}  f4 {[%clk 0:01:05]} 28. exf4 {[%clk 0:02:25]}  exf4 {[%clk 0:01:06]} 29. Rbd1 {[%clk 0:02:26]}  Rad8 {[%clk 0:01:05]} 30. Re1 {[%clk 0:02:20]}  Rfe8 {[%clk 0:01:03]} 31. Rdd1 {[%clk 0:02:20]}  Kf8 {[%clk 0:00:49]} 32. Qd2 {[%clk 0:02:19]}  Rxe1+ {[%clk 0:00:48]} 33. Rxe1 {[%clk 0:02:19]}  Re8 {[%clk 0:00:42]} 34. Rd1 {[%clk 0:02:19]}  Nxa4 {[%clk 0:00:36]} 35. Qxa5 {[%clk 0:02:17]}  Nc5 {[%clk 0:00:36]} 36. Qd2 {[%clk 0:02:16]}  f3 {[%clk 0:00:28]} 37. Bf1 {[%clk 0:02:13]}  Rd8 {[%clk 0:00:26]} 38. Qe3 {[%clk 0:02:09]}  Rd7 {[%clk 0:00:19]} 39. h4 {[%clk 0:02:10]}  Re7 {[%clk 0:00:20]} 40. Qd2 {[%clk 0:02:08]}  Ne4 {[%clk 0:00:17]} 41. Qh6+ {[%clk 0:02:03]}  Kg8 {[%clk 0:00:15]} 42. Rd3 {[%clk 0:02:03]}  Nc5 {[%clk 0:00:11]} 43. Rd1 {[%clk 0:02:01]}  Re4 {[%clk 0:00:11]} 44. Qd2 {[%clk 0:01:59]}  Kf7 {[%clk 0:00:10]} 45. Kh2 {[%clk 0:01:58]}  Ke7 {[%clk 0:00:10]} 46. Qh6 {[%clk 0:01:53]}  Qf7 {[%clk 0:00:09]} 47. Qg5+ {[%clk 0:01:52]}  Kd7 {[%clk 0:00:10]} 48. Qd2 {[%clk 0:01:50]}  Qe7 {[%clk 0:00:09]} 49. Qc3 {[%clk 0:01:42]}  Qe5 {[%clk 0:00:07]} 50. Qxf3 {[%clk 0:01:41]}  Ke7 {[%clk 0:00:06]} 51. Bg2 {[%clk 0:01:35]}  Rxh4+ {[%clk 0:00:06]} 52. Kg1 {[%clk 0:01:35]}  Rxc4 {[%clk 0:00:07]} 53. Bf1 {[%clk 0:01:25]}  Re4 {[%clk 0:00:06]} 54. Qh1 {[%clk 0:01:23]}  Re1 {[%clk 0:00:07]} 55. Qxh7+ {[%clk 0:01:23]}  Kd8 {[%clk 0:00:07]} 56. Rxe1 {[%clk 0:01:17]}  Qxe1 {[%clk 0:00:07]} 57. Qxg6 {[%clk 0:01:18]}  Kc7 {[%clk 0:00:08]} 58. Kg2 {[%clk 0:01:17]}  d5 {[%clk 0:00:08]} 59. Qc2 {[%clk 0:01:15]}  Ne4 {[%clk 0:00:08]} 60. Bd3 {[%clk 0:01:15]}  Nd6 {[%clk 0:00:08]} 61. g4 {[%clk 0:01:12]}  Qe5 {[%clk 0:00:08]} 62. Qe2 {[%clk 0:01:05]}  Qf4 {[%clk 0:00:07]} 63. Qf3 {[%clk 0:01:05]}  Qg5 {[%clk 0:00:06]} 64. Kg3 {[%clk 0:01:00]}  Qd2 {[%clk 0:00:05]} 65. Qe3 {[%clk 0:00:57]}  Qxe3+ {[%clk 0:00:05]} 66. fxe3 {[%clk 0:00:58]}  c5 {[%clk 0:00:05]} 67. g5 {[%clk 0:00:58]}  c4 {[%clk 0:00:06]} 68. Bc2 {[%clk 0:00:57]}  Kd7 {[%clk 0:00:06]} 69. g6 {[%clk 0:00:57]}  Ke6 {[%clk 0:00:06]} 70. Kf4 {[%clk 0:00:57]}  Kf6 {[%clk 0:00:07]} 71. a4 {[%clk 0:00:51]}  b5 {[%clk 0:00:05]} 72. axb5 {[%clk 0:00:46]}  Nxb5 {[%clk 0:00:06]} 73. Kf3 {[%clk 0:00:42]}  Na3 {[%clk 0:00:06]} 74. Ba4 {[%clk 0:00:39]}  Kxg6 {[%clk 0:00:03]} 75. Bc6 {[%clk 0:00:39]}  c3 {[%clk 0:00:02]} 76. Bxd5 {[%clk 0:00:39]}  c2 {[%clk 0:00:01]} 77. Be4+ {[%clk 0:00:37]} 1/2-1/2

[Event "January 9 Late 2024"]
[Site "https://www.chess.com"]
[Date "2024.01.09"]
[Round "11"]
[White "Yurasov, Matfey"]
[Black "Weetik, Vjacheslav"]
[Result "1/2-1/2"]
[Board "40"]
[TimeControl "180+1"]
[WhiteFideId "55617603"]
[BlackFideId "4153472"]
[WhiteElo "2577"]
[BlackElo "2725"]
[WhiteTeam "FID"]
[BlackTeam "RUS"]
[WhiteClock "0:00:03"]
[BlackClock "0:00:04"]

1. e4 {[%clk 0:03:00]}  c5 {[%clk 0:03:00]} 2. Nf3 {[%clk 0:03:00]}  d6 {[%clk 0:03:00]} 3. Bb5+ {[%clk 0:02:59]}  Nc6 {[%clk 0:03:00]} 4. d4 {[%clk 0:02:58]}  cxd4 {[%clk 0:03:00]} 5. Nxd4 {[%clk 0:02:59]}  Bd7 {[%clk 0:03:00]} 6. O-O {[%clk 0:02:58]}  Nf6 {[%clk 0:02:54]} 7. Re1 {[%clk 0:02:58]}  g6 {[%clk 0:02:44]} 8. c4 {[%clk 0:02:55]}  Bg7 {[%clk 0:02:39]} 9. Nc3 {[%clk 0:02:55]}  O-O {[%clk 0:02:38]} 10. h3 {[%clk 0:02:49]}  Nxd4 {[%clk 0:02:21]} 11. Qxd4 {[%clk 0:02:43]}  Be6 {[%clk 0:02:21]} 12. Qd3 {[%clk 0:02:31]}  Rc8 {[%clk 0:02:19]} 13. b3 {[%clk 0:02:17]}  a6 {[%clk 0:02:15]} 14. Ba4 {[%clk 0:02:17]}  b5 {[%clk 0:01:42]} 15. cxb5 {[%clk 0:02:16]}  Rxc3 {[%clk 0:01:31]} 16. Qxc3 {[%clk 0:02:16]}  Nxe4 {[%clk 0:01:16]} 17. Qe3 {[%clk 0:02:11]}  Bxa1 {[%clk 0:01:07]} 18. Qxe4 {[%clk 0:02:11]}  axb5 {[%clk 0:00:58]} 19. Bxb5 {[%clk 0:02:09]}  Qa5 {[%clk 0:00:58]} 20. a4 {[%clk 0:02:00]}  Bg7 {[%clk 0:00:45]} 21. Bg5 {[%clk 0:01:55]}  Bxb3 {[%clk 0:00:42]} 22. Qxe7 {[%clk 0:01:35]}  Bxa4 {[%clk 0:00:39]} 23. Bxa4 {[%clk 0:01:04]}  Qxa4 {[%clk 0:00:39]} 24. Qxd6 {[%clk 0:00:57]}  Qa5 {[%clk 0:00:39]} 25. Bd2 {[%clk 0:00:55]}  Qa2 {[%clk 0:00:32]} 26. Bb4 {[%clk 0:00:53]}  h5 {[%clk 0:00:27]} 27. g3 {[%clk 0:00:28]}  Rc8 {[%clk 0:00:25]} 28. Qd3 {[%clk 0:00:09]}  Bf6 {[%clk 0:00:16]} 29. Qf3 {[%clk 0:00:07]}  Kg7 {[%clk 0:00:13]} 30. Rd1 {[%clk 0:00:05]}  Qc4 {[%clk 0:00:09]} 31. Bd2 {[%clk 0:00:05]}  Rd8 {[%clk 0:00:06]} 32. Be3 {[%clk 0:00:04]}  Rxd1+ {[%clk 0:00:04]} 33. Qxd1 {[%clk 0:00:05]}  Qe6 {[%clk 0:00:05]} 34. Qf1 {[%clk 0:00:05]}  h4 {[%clk 0:00:04]} 35. g4 {[%clk 0:00:05]}  Qe4 {[%clk 0:00:05]} 36. Qe2 {[%clk 0:00:04]}  Kg8 {[%clk 0:00:04]} 37. Qd2 {[%clk 0:00:03]}  Qf3 {[%clk 0:00:04]} 38. Qd6 {[%clk 0:00:03]}  Kg7 {[%clk 0:00:03]} 39. g5 {[%clk 0:00:03]}  Ba1 {[%clk 0:00:03]} 40. Bd4+ {[%clk 0:00:02]}  Bxd4 {[%clk 0:00:04]} 41. Qxd4+ {[%clk 0:00:03]}  Kg8 {[%clk 0:00:04]} 42. Qxh4 {[%clk 0:00:04]}  Qd1+ {[%clk 0:00:04]} 43. Kg2 {[%clk 0:00:03]}  Qd5+ {[%clk 0:00:04]} 44. f3 {[%clk 0:00:03]}  Qd2+ {[%clk 0:00:05]} 45. Kg1 {[%clk 0:00:03]}  Qd1+ {[%clk 0:00:04]} 46. Kf2 {[%clk 0:00:02]}  Qd2+ {[%clk 0:00:05]} 47. Kg3 {[%clk 0:00:02]}  Qe1+ {[%clk 0:00:05]} 48. Kg4 {[%clk 0:00:02]}  Qg1+ {[%clk 0:00:05]} 49. Qg3 {[%clk 0:00:03]}  Qd4+ {[%clk 0:00:05]} 50. Qf4 {[%clk 0:00:02]}  Qg1+ {[%clk 0:00:06]} 51. Kh4 {[%clk 0:00:03]}  Qe1+ {[%clk 0:00:04]} 52. Qg3 {[%clk 0:00:02]}  Qe3 {[%clk 0:00:04]} 53. f4 {[%clk 0:00:02]}  Qe4 {[%clk 0:00:04]} 54. Qg4 {[%clk 0:00:02]}  Qe1+ {[%clk 0:00:05]} 55. Qg3 {[%clk 0:00:02]}  Qe4 {[%clk 0:00:05]} 56. Qg4 {[%clk 0:00:03]}  Qe1+ {[%clk 0:00:05]} 57. Qg3 {[%clk 0:00:03]}  Qd1 {[%clk 0:00:06]} 58. Qf2 {[%clk 0:00:02]}  Qh5+ {[%clk 0:00:06]} 59. Kg3 {[%clk 0:00:03]}  Qd1 {[%clk 0:00:07]} 60. Kh2 {[%clk 0:00:03]}  Qd3 {[%clk 0:00:06]} 61. h4 {[%clk 0:00:03]}  Qf5 {[%clk 0:00:07]} 62. Kg3 {[%clk 0:00:02]}  Qd3+ {[%clk 0:00:07]} 63. Qf3 {[%clk 0:00:02]}  Qb1 {[%clk 0:00:07]} 64. h5 {[%clk 0:00:02]}  Qg1+ {[%clk 0:00:07]} 65. Kh3 {[%clk 0:00:03]}  gxh5 {[%clk 0:00:07]} 66. Qxh5 {[%clk 0:00:03]}  Qh1+ {[%clk 0:00:07]} 67. Kg4 {[%clk 0:00:03]}  Qg2+ {[%clk 0:00:07]} 68. Kf5 {[%clk 0:00:03]}  Qc2+ {[%clk 0:00:07]} 69. Kg4 {[%clk 0:00:03]}  Qe2+ {[%clk 0:00:07]} 70. Kh4 {[%clk 0:00:03]}  Qh2+ {[%clk 0:00:07]} 71. Kg4 {[%clk 0:00:03]}  Qe2+ {[%clk 0:00:08]} 72. Kh4 {[%clk 0:00:03]}  Qh2+ {[%clk 0:00:08]} 73. Kg4 {[%clk 0:00:03]}  Qg2+ {[%clk 0:00:07]} 74. Kh4 {[%clk 0:00:03]}  Qf2+ {[%clk 0:00:05]} 75. Kg4 {[%clk 0:00:03]}  Qg2+ {[%clk 0:00:04]} 1/2-1/2